Workbook

Sheet Tabelle1
B65: Blumenzwiebeln Herbst 2022
A67: Art.Nr. | B67: Artikel | D67: Zwiebel- grösse | F67: Bestell- menge | G67: Bestell-menge | H67: 100 Stk. SFr. | I67: 100 Stk. Fr. | J67: 10 Stk. SFr.
B68: Allium | F68: 100 Stück / € | H68: 100 Stk.Fr. | I68: 10 Stück / € | J68: 10 Stk. Fr.
A69: 542030 | B69: Ambassador® | D69: 20/24 | E69: 2 | F69: 287.80 € | H69: =F69*E69 -> 575.60 | I69: 36.00 | J69: =I69*E69 -> 72.00
A70: 542070 | B70: amethystinum Red Mohican | D70: 10/+ | E70: 2 | F70: 129.20 € | H70: =F70*E70 -> 258.40 | I70: 16.20 | J70: =I70*E70 -> 32.40
A71: 542036 | B71: ampeloprasum | D71: 7/+ | E71: 2 | F71: 24.00 € | H71: =F71*E71 -> 48.00 | I71: 3.00 € | J71: =I71*E71 -> 6.00
A72: 542060 | B72: amplectens "Graceful Beauty®" | D72: 6/+ | E72: 2 | F72: 28.00 € | H72: =F72*E72 -> 56.00 | I72: 3.60 € | J72: 7.20
A73: 542040 | B73: angulosum | D73: I | E73: 2 | F73: 118.60 € | H73: =F73*E73 -> 237.20 | I73: 14.80 € | J73: 29.60
A74: 541980 | B74: Art® | D74: 5/+ | E74: 2 | F74: 18.40 € | H74: =F74*E74 -> 36.80 | I74: 2.40 € | J74: 4.80
A75: 542140 | B75: atropurpureum | D75: 8/10 | E75: 2 | F75: 27.00 € | H75: 54.00 | I75: 3.40 € | J75: 6.80
A76: 542190 | B76: caeruleum (azureum) | D76: 4/+ | E76: 2 | F76: 12.00 € | H76: 24.00 | I76: 1.60 € | J76: 3.20
A77: 542210 | B77: Cameleon® | D77: 4/+ | E77: 2 | F77: 17.40 € | H77: 34.80 | I77: 2.20 € | J77: 4.40
A78: 542220 | B78: carinatum ssp. pulchellum | D78: I | E78: 2 | F78: 49.20 € | H78: 98.40 | I78: 6.20 € | J78: 12.40
A79: 542230 | B79: carinat. ssp. pulchellum album | D79: I | E79: 2 | F79: 66.00 € | H79: 132.00 | I79: 8.20 € | J79: 16.40
A80: 542233 | B80: carolinianum Rosy Dream | D80: 6/+ | E80: 2 | F80: 36.40 € | H80: 72.80 | I80: 4.60 € | J80: 9.20
A81: 542240 | B81: cernuum | D81: I | E81: 2 | F81: 39.60 € | H81: 79.20 | I81: 5.00 € | J81: 10.00
A82: 542243 | B82: chloranthum Yellow Fantasy | D82: 6/+ | E82: 2 | F82: 45.00 € | H82: 90.00 | I82: 5.60 € | J82: 11.20
A83: 542080 | B83: christophii (albopilosum) | D83: 10/12 | E83: 2 | F83: 25.00 € | H83: 50.00 | I83: 3.20 € | J83: 6.40
A84: 542280 | B84: cowanii | D84: 5/+ | E84: 2 | F84: 10.20 € | H84: 20.40 | I84: 1.20 € | J84: 2.40
A85: 542270 | B85: Dutchman | D85: 18/+ | E85: 2 | F85: 337.20 € | H85: 674.40 | I85: 42.20 € | J85: 84.40
A86: 542295 | B86: Firmament | D86: 8/+ | E86: 2 | F86: 116.40 € | H86: 232.80 | I86: 14.60 € | J86: 29.20
A87: 542297 | B87: fistulosum | D87: I | E87: 2 | F87: 91.20 € | H87: 182.40 | I87: 11.40 € | J87: 22.80
A88: 542300 | B88: flavum | D88: I | E88: 2 | F88: 50.20 € | H88: 100.40 | I88: 6.20 € | J88: 12.40
A89: 542340 | B89: Forelock® | D89: 14/+ | E89: 2 | F89: 159.40 € | H89: 318.80 | I89: 20.00 € | J89: 40.00
A90: 542380 | B90: giganteum | D90: 20/+ | E90: 2 | F90: 357.00 € | H90: 714.00 | I90: 44.60 € | J90: 89.20
A91: 542370 | B91: Gladiator | D91: 18/20 | E91: 2 | F91: 141.80 € | H91: 283.60 | I91: 17.80 € | J91: 35.60
A92: 542410 | B92: Globemaster | D92: 20/+ | E92: 2 | F92: 376.80 € | H92: 753.60 | I92: 47.20 € | J92: 94.40
A93: 542415 | B93: Globus | D93: 8/+ | E93: 2 | F93: 150.80 € | H93: 301.60 | I93: 18.80 € | J93: 37.60
A94: 542453 | B94: Jackpot | D94: 14/+ | E94: 2 | F94: 161.40 € | H94: 322.80 | I94: 20.20 € | J94: 40.40
A95: 542291 | B95: jesdianum "Early Emperor" | D95: 14/+ | E95: 2 | F95: 165.40 € | H95: 330.80 | I95: 20.60 € | J95: 41.20
A96: 542440 | B96: karataviense | D96: 10/12 | E96: 2 | F96: 26.00 € | H96: 52.00 | I96: 3.20 € | J96: 6.40
A97: 542443 | B97: karataviense Red Giant | D97: 12/14 | E97: 2 | F97: 39.60 € | H97: 79.20 | I97: 5.00 € | J97: 10.00
A98: 542455 | B98: ledebourianum | D98: I | E98: 2 | F98: 122.80 € | H98: 245.60 | I98: 15.40 € | J98: 30.80
A99: 542430 | B99: macleanii His Excellency | D99: 20/+ | E99: 2 | F99: 199.00 € | H99: 398.00 | I99: 24.80 € | J99: 49.60
A100: 542530 | B100: Mercurius® | D100: 10/+ | E100: 2 | F100: 124.80 € | H100: 249.60 | I100: 15.60 € | J100: 31.20
A101: 542550 | B101: Metallic Shine | D101: 10/+ | E101: 2 | F101: 42.60 € | H101: 85.20 | I101: 5.40 € | J101: 10.80
A102: 542590 | B102: Miami® | D102: 10/+ | E102: 2 | F102: 20.60 € | H102: 41.20 | I102: 2.60 € | J102: 5.20
A103: 542480 | B103: moly | D103: 5/+ | E103: 2 | F103: 6.20 € | H103: 12.40 | I103: 0.80 € | J103: 1.60
A104: 542490 | B104: moly "Jeannine" | D104: 5/+ | E104: 2 | F104: 8.00 € | H104: 16.00 | I104: 1.00 € | J104: 2.00
A105: 542500 | B105: Mount Everest | D105: 18/20 | E105: 2 | F105: 149.60 € | H105: 299.20 | I105: 18.80 € | J105: 37.60
A106: 542200 | B106: nevskianum | D106: 10/+ | E106: 2 | F106: 164.80 € | H106: 329.60 | I106: 20.60 € | J106: 41.20
A107: 542540 | B107: nigrum | D107: 10/12 | E107: 2 | F107: 23.40 € | H107: 46.80 | I107: 3.00 € | J107: 6.00
A108: 542250 | B108: nigrum Pink Jewel® | D108: 10/+ | E108: 2 | F108: 150.20 € | H108: 300.40 | I108: 18.80 € | J108: 37.60
A109: 542600 | B109: obliquum | D109: I | E109: 2 | F109: 327.00 € | H109: 654.00 | I109: 40.80 € | J109: 81.60
A110: 542640 | B110: oreophilum (ostrowskianum) | D110: 4/+ | E110: 2 | F110: 6.60 € | H110: 13.20 | I110: 0.80 € | J110: 1.60
A111: 542610 | B111: Ostara® | D111: 12/+ | E111: 2 | F111: 42.60 € | H111: 85.20 | I111: 5.40 € | J111: 10.80
A112: 542650 | B112: paradoxum var. paradoxum | D112: I | E112: 2 | F112: 34.40 € | H112: 68.80 | I112: 4.40 € | J112: 8.80
A113: 542630 | B113: Pinball Wizard | D113: 20/+ | E113: 2 | F113: 307.60 € | H113: 615.20 | I113: 38.40 € | J113: 76.80
A114: 542635 | B114: plummerae | D114: I | E114: 2 | F114: 162.80 € | H114: 325.60 | I114: 20.40 € | J114: 40.80
A115: 542705 | B115: Purple Caila | D115: 18/20 | E115: 2 | F115: 258.20 € | H115: 516.40 | I115: 32.20 € | J115: 64.40
A116: 542709 | B116: Purple Rain | D116: 10/+ | E116: 2 | F116: 21.60 € | H116: 43.20 | I116: 2.80 € | J116: 5.60
A117: 542020 | B117: Purple Sensation (aflatunense) | D117: 10/11 | E117: 2 | F117: 24.20 € | H117: 48.40 | I117: 3.00 € | J117: 6.00
A118: 542700 | B118: ramosum | D118: I | E118: 2 | F118: 120.60 € | H118: 241.20 | I118: 15.00 € | J118: 30.00
A119: 542680 | B119: rosenbachianum | D119: 14/16 | E119: 2 | F119: 129.80 € | H119: 259.60 | I119: 16.20 € | J119: 32.40
A120: 542740 | B120: roseum | D120: 5/+ | E120: 2 | F120: 8.60 € | H120: 17.20 | I120: 1.00 € | J120: 2.00
A121: 542801 | B121: rotundum ssp. jajlae | D121: I | E121: 2 | F121: 55.40 € | H121: 110.80 | I121: 7.00 € | J121: 14.00
A122: 542751 | B122: sativum ssp. Ophioscorodon | D122: I | E122: 2 | F122: 76.40 € | H122: 152.80 | I122: 9.60 € | J122: 19.20
A123: 542753 | B123: schoenoprasum Forescate | D123: I | E123: 2 | F123: 84.80 € | H123: 169.60 | I123: 10.60 € | J123: 21.20
A124: 542760 | B124: schubertii | D124: 10/12 | E124: 2 | F124: 66.00 € | H124: 132.00 | I124: 8.20 € | J124: 16.40
A125: 542770 | B125: senescens ssp. montanum | D125: I | E125: 2 | F125: 66.00 € | H125: 132.00 | I125: 8.20 € | J125: 16.40
A126: 542820 | B126: Silverspring® | D126: 10/+ | E126: 2 | F126: 234.60 € | H126: 469.20 | I126: 29.40 € | J126: 58.80
A127: Art.Nr. | B127: Artikel | D127: Zwiebel- grösse | F127: Bestell- menge | G127: Bestell-menge | H127: 100 Stk. SFr. | I127: 100 Stk. Fr. | J127: 10 Stk. SFr.
B128: Allium
A129: 542780 | B129: sphaerocephalon | D129: 6/+ | E129: 2 | F129: 9.20 € | H129: 18.40 | I129: 1.20 € | J129: 2.40
A130: 542850 | B130: stipitatum | D130: 18/+ | E130: 2 | F130: 149.60 € | H130: 299.20 | I130: 18.80 € | J130: 37.60
A131: 542965 | B131: Stratos | D131: 14/+ | E131: 2 | F131: 137.80 € | H131: 275.60 | I131: 17.20 € | J131: 34.40
A132: 542860 | B132: Summer Drummer | D132: 12/+ | E132: 2 | F132: 38.40 € | H132: 76.80 | I132: 4.80 € | J132: 9.60
A133: 542810 | B133: Toabago® syn. Spider | D133: 10/+ | E133: 2 | F133: 45.00 € | H133: 90.00 | I133: 5.60 € | J133: 11.20
A134: 542890 | B134: triquetrum | D134: 5/+ | E134: 2 | F134: 36.40 € | H134: 72.80 | I134: 4.60 € | J134: 9.20
A135: 542910 | B135: tuberosum | D135: I | E135: 2 | F135: 60.60 € | H135: 121.20 | I135: 7.60 € | J135: 15.20
A136: 542940 | B136: unifolium | D136: 5/+ | E136: 2 | F136: 13.20 € | H136: 26.40 | I136: 1.60 € | J136: =I136*E136 -> 3.20
A137: 542350 | B137: unifolium Eros® | D137: 5/+ | E137: 2 | F137: 20.60 € | H137: 41.20 | I137: 2.60 € | J137: 5.20
A138: 542942 | B138: Universe | D138: 18/20 | E138: 2 | F138: 406.40 € | H138: 812.80 | I138: 50.80 € | J138: 101.60
A139: 542980 | B139: ursinum ssp. ursinum | D139: I | E139: 2 | F139: 24.80 € | H139: =F139*E139 -> 49.60 | I139: 3.20 € | J139: 6.40
A140: 542420 | B140: vineale Hair® | D140: 5/+ | E140: 2 | F140: 16.60 € | H140: 33.20 | I140: 2.00 € | J140: 4.00
A141: 542049 | B141: Violet Beauty | D141: 10/+ | E141: 2 | F141: 26.00 € | H141: 52.00 | I141: 3.20 € | J141: 6.40
A142: 542950 | B142: White Cloud | D142: 7/+ | E142: 2 | F142: 20.80 € | H142: 41.60 | I142: 2.60 € | J142: 5.20
A143: 542930 | B143: White Giant | D143: 20/+ | E143: 2 | F143: 208.80 € | H143: 417.60 | I143: 26.20 € | J143: 52.40
B144: Anemonen | E144: 2
A145: 545580 | B145: blanda "Blue Shades" | D145: 5/+ | E145: 2 | F145: 8.60 € | H145: 17.20 | I145: 1.00 € | J145: 2.00
A146: 545610 | B146: blanda "Blue Splendour" | D146: 5/+ | E146: 2 | F146: 21.60 € | H146: 43.20 | I146: 2.80 € | J146: 5.60
A147: 545620 | B147: blanda "Charmer" | D147: 5/+ | E147: 2 | F147: 20.80 € | H147: 41.60 | I147: 2.60 € | J147: 5.20
A148: 545640 | B148: blanda "Pink Star" | D148: 5/+ | E148: 2 | F148: 20.80 € | H148: 41.60 | I148: 2.60 € | J148: 5.20
A149: 545740 | B149: blanda "White Splendour" | D149: 5/7 | E149: 2 | F149: 20.00 € | H149: 40.00 | I149: 2.60 € | J149: 5.20
A150: 545780 | B150: blanda Prachtmischung | D150: 5/+ | E150: 2 | F150: 15.40 € | H150: 30.80 | I150: 2.00 € | J150: 4.00
A151: 545151 | B151: coronaria "Hollandia" | D151: 5/6 | E151: 2 | F151: 13.20 € | H151: 26.40 | I151: 1.60 € | J151: 3.20
A152: 545251 | B152: coronaria "Mr. Fokker" | D152: 5/6 | E152: 2 | F152: 13.20 € | H152: 26.40 | I152: 1.60 € | J152: 3.20
A153: 545201 | B153: coronaria "Sylphide" | D153: 5/6 | E153: 2 | F153: 13.20 € | H153: 26.40 | I153: 1.60 € | J153: 3.20
A154: 545301 | B154: coronaria "The Bride" | D154: 5/6 | E154: 2 | F154: 13.20 € | H154: 26.40 | I154: 1.60 € | J154: 3.20
A155: 545091 | B155: coronaria de Caen Mischung | D155: 5/6 | E155: 2 | F155: 13.20 € | H155: 26.40 | I155: 1.60 € | J155: 3.20
A156: 545441 | B156: coronaria "Lord Lieutnant" | D156: 5/6 | E156: 2 | F156: 14.40 € | H156: 28.80 | I156: 1.80 € | J156: 3.60
A157: 545461 | B157: coronaria "Mount Everest" | D157: 5/6 | E157: 2 | F157: 14.40 € | H157: 28.80 | I157: 1.80 € | J157: 3.60
A158: 545401 | B158: coronaria "The Admiral" | D158: 5/6 | E158: 2 | F158: 14.40 € | H158: 28.80 | I158: 1.80 € | J158: 3.60
A159: 545421 | B159: coronaria "The Gouverneur" | D159: 5/6 | E159: 2 | F159: 14.40 € | H159: 28.80 | I159: 1.80 € | J159: 3.60
A160: 545371 | B160: coronaria St. Brigid Mischung | D160: 5/6 | E160: 2 | F160: 14.40 € | H160: 28.80 | I160: 1.80 € | J160: 3.60
A161: 545900 | B161: nemorosa | D161: I | E161: 2 | F161: 18.20 € | H161: 36.40 | I161: 2.20 € | J161: 4.40
A162: 545920 | B162: nemorosa "Robinsoniana" | D162: I | E162: 2 | F162: 103.80 € | H162: 207.60 | I162: 13.00 € | J162: 26.00
A163: 545930 | B163: nemorosa "Vestal" | D163: I | E163: 2 | F163: 97.60 € | H163: 195.20 | I163: 12.20 € | J163: 24.40
A164: 545940 | B164: ranunculoides | D164: I | E164: 2 | F164: 36.40 € | H164: 72.80 | I164: 4.60 € | J164: 9.20
B165: Arum | E165: 2
A166: 545980 | B166: italicum | D166: 10/+ | E166: 2 | F166: 67.00 € | H166: 134.00 | I166: 8.40 € | J166: 16.80
A167: 545970 | B167: maculatum | D167: I | E167: 2 | F167: 105.80 € | H167: 211.60 | I167: 13.20 € | J167: 26.40
B168: Bellevalia | E168: 2
A169: 545990 | B169: pycnantha | D169: 7/+ | E169: 2 | F169: 15.40 € | H169: 30.80 | I169: 2.00 € | J169: 4.00
A170: 546020 | B170: pycnantha Green Pearl | D170: 6/+ | E170: 2 | F170: 17.40 € | H170: 34.80 | I170: 2.20 € | J170: 4.40
B171: Calochortus | E171: 2
A172: 546240 | B172: Cupido® | D172: 4/+ | E172: 2 | F172: 13.20 € | H172: 26.40 | I172: 1.60 € | J172: 3.20
B173: Camassia | E173: 2
A174: 546280 | B174: cusickii | D174: 14/+ | E174: 2 | F174: 76.40 € | H174: 152.80 | I174: 9.60 € | J174: 19.20
A175: 546300 | B175: cusickii "Zwanenburg" | D175: 14/+ | E175: 2 | F175: 89.20 € | H175: 178.40 | I175: 11.20 € | J175: 22.40
A176: 546390 | B176: leichtlinii f. Alba | D176: 12/14 | E176: 2 | F176: 56.00 € | H176: 112.00 | I176: 7.00 € | J176: 14.00
A177: 546420 | B177: leichtlinii alba "Sacajawea" | D177: 14/+ | E177: 2 | F177: 87.60 € | H177: 175.20 | I177: 11.00 € | J177: 22.00
A178: 546400 | B178: leichlinii Caerulea | D178: 14/+ | E178: 2 | F178: 77.00 € | H178: 154.00 | I178: 9.60 € | J178: 19.20
A179: 546410 | B179: leichtlinii "Semiplena" | D179: 12/+ | E179: 2 | F179: 102.80 € | H179: 205.60 | I179: 12.80 € | J179: 25.60
A180: 546430 | B180: quamash (esculenta) | D180: 6/+ | E180: 2 | F180: 11.20 € | H180: 22.40 | I180: 1.40 € | J180: 2.80
A181: 546450 | B181: quamash "Blue Melody" | D181: 6/+ | E181: 2 | F181: 18.20 € | H181: 36.40 | I181: 2.20 € | J181: 4.40
A182: 546460 | B182: quamash "Orion" | D182: 6/+ | E182: 2 | F182: 12.40 € | H182: 24.80 | I182: 1.60 € | J182: 3.20
B183: Chionodoxa | E183: 2
A184: 546560 | B184: forbesii | D184: 5/+ | E184: 2 | F184: 10.20 € | H184: 20.40 | I184: 1.20 € | J184: 2.40
A185: 546570 | B185: forbesii "Blue Giant" | D185: 5/+ | E185: 2 | F185: 18.80 € | H185: 37.60 | I185: 2.40 € | J185: 4.80
A186: 546600 | B186: forbesii "Pink Giant" | D186: 5/+ | E186: 2 | F186: 14.00 € | H186: 28.00 | I186: 1.80 € | J186: 3.60
A187: 546480 | B187: luciliae | D187: 5/+ | E187: 2 | F187: 10.40 € | H187: 20.80 | I187: 1.40 € | J187: 2.80
A188: 546520 | B188: luciliae alba | D188: 5/+ | E188: 2 | F188: 10.40 € | H188: 20.80 | I188: 1.40 € | J188: 2.80
A189: Art.Nr. | B189: Artikel | D189: Zwiebel- grösse | F189: Bestell- menge | G189: Bestell-menge | H189: 100 Stk. SFr. | I189: 100 Stk. Fr. | J189: 10 Stk. SFr.
B190: Chionodoxa
A191: 546660 | B191: sardensis | D191: 5/+ | E191: 2 | F191: 13.20 € | H191: 26.40 | I191: 1.60 € | J191: 3.20
B192: Colchicum | E192: 2
A193: 546820 | B193: autumnale (minor) | D193: 13/+ | E193: 2 | F193: 181.20 € | H193: 362.40 | I193: 22.60 € | J193: 45.20
A194: 546840 | B194: autumnale "Alboplenum" | D194: 13/+ | E194: 2 | F194: 244.40 € | H194: 488.80 | I194: 30.60 € | J194: 61.20
A195: 546860 | B195: autumnale Album | D195: 13/+ | E195: 2 | F195: 171.60 € | H195: 343.20 | I195: 21.40 € | J195: 42.80
A196: 546940 | B196: autumnale "Pleniflorum" | D196: 13/+ | E196: 2 | F196: 149.60 € | H196: 299.20 | I196: 18.80 € | J196: 37.60
A197: 546979 | B197: bornmülleri | D197: 20/+ | E197: 2 | F197: 212.60 € | H197: 425.20 | I197: 26.60 € | J197: 53.20
A198: 546900 | B198: byzantinum | D198: 18/20 | E198: 2 | F198: 118.00 € | H198: 236.00 | I198: 14.80 € | J198: 29.60
A199: 547060 | B199: cilicicum | D199: 20/+ | E199: 2 | F199: 191.60 € | H199: 383.20 | I199: 24.00 € | J199: 48.00
A200: 547070 | B200: Dick Trotter | D200: 18/20 | E200: 2 | F200: 204.40 € | H200: 408.80 | I200: 25.60 € | J200: 51.20
A201: 547260 | B201: Giant | D201: 18/20 | E201: 2 | F201: 109.40 € | H201: 218.80 | I201: 13.60 € | J201: 27.20
A202: 547077 | B202: giganteum (illyricum) | D202: 18/20 | E202: 2 | F202: 172.60 € | H202: 345.20 | I202: 21.60 € | J202: =I202*E202 -> 43.20
A203: 547180 | B203: Lilac Wonder | D203: 18/20 | E203: 2 | F203: 214.80 € | H203: 429.60 | I203: 26.80 € | J203: 53.60
A204: 547270 | B204: pannonicum | D204: I | E204: 2 | F204: 202.20 € | H204: 404.40 | I204: 25.20 € | J204: 50.40
A205: 547378 | B205: speciosum | D205: 16/+ | E205: 2 | F205: 202.20 € | H205: =F205*E205 -> 404.40 | I205: 25.20 € | J205: 50.40
A206: 547330 | B206: Waterlily | D206: 16/+ | E206: 2 | F206: 183.40 € | H206: 366.80 | I206: 23.00 € | J206: 46.00
B207: Convallaria - nur in Bündeln á 25 Stück! | E207: 2
A208: 547500 | B208: Blühkeime | D208: I | E208: 2 | F208: 77.40 € | H208: 154.80 | I208: 9.60 € | J208: 19.20
A209: 547520 | B209: Pflanzkeime | D209: I | E209: 2 | F209: 37.20 € | H209: 74.40 | I209: 4.60 € | J209: 9.20
B210: Corydalis | E210: 2
A211: 547600 | B211: bulbosa (cava) | D211: I | E211: 2 | F211: 110.20 € | H211: 220.40 | I211: 13.80 € | J211: 27.60
A212: 547610 | B212: bulbosa (cava) Alba | D212: I | E212: 2 | F212: 135.40 € | H212: 270.80 | I212: 17.00 € | J212: 34.00
A213: 547680 | B213: solida | D213: 5/+ | E213: 2 | F213: 37.20 € | H213: 74.40 | I213: 4.60 € | J213: 9.20
A214: 547590 | B214: solida Beth Evans | D214: 6/+ | E214: 2 | F214: 32.20 € | H214: 64.40 | I214: 4.00 € | J214: 8.00
B215: Crocus | E215: 2
A216: 539120 | B216: Flower Record | D216: 9/10 | E216: 2 | F216: 24.20 € | H216: 48.40 | I216: 3.00 € | J216: 6.00
A217: 539130 | B217: Flower Record | D217: 8/9 | E217: 2 | F217: 21.60 € | H217: 43.20 | I217: 2.80 € | J217: 5.60
A218: 539220 | B218: Grand Maitre | D218: 9/10 | E218: 2 | F218: 24.20 € | H218: 48.40 | I218: 3.00 € | J218: 6.00
A219: 539230 | B219: Grand Maitre | D219: 8/9 | E219: 2 | F219: 21.60 € | H219: 43.20 | I219: 2.80 € | J219: 5.60
A220: 539320 | B220: Große Gelbe | D220: 9/10 | E220: 2 | F220: 24.20 € | H220: 48.40 | I220: 3.00 € | J220: 6.00
A221: 539330 | B221: Große Gelbe | D221: 8/9 | E221: 2 | F221: 21.60 € | H221: 43.20 | I221: 2.80 € | J221: 5.60
A222: 539420 | B222: Jeanne d'Arc | D222: 9/10 | E222: 2 | F222: 24.20 € | H222: 48.40 | I222: 3.00 € | J222: 6.00
A223: 539430 | B223: Jeanne d'Arc | D223: 8/9 | E223: 2 | F223: 21.60 € | H223: 43.20 | I223: 2.80 € | J223: 5.60
A224: 539520 | B224: King of the Striped | D224: 9/10 | E224: 2 | F224: 24.20 € | H224: 48.40 | I224: 3.00 € | J224: 6.00
A225: 539530 | B225: King of the Striped | D225: 8/9 | E225: 2 | F225: 21.60 € | H225: 43.20 | I225: 2.80 € | J225: 5.60
A226: 539620 | B226: Pickwick | D226: 9/10 | E226: 2 | F226: 24.20 € | H226: 48.40 | I226: 3.00 € | J226: 6.00
A227: 539630 | B227: Pickwick | D227: 8/9 | E227: 2 | F227: 21.60 € | H227: 43.20 | I227: 2.80 € | J227: 5.60
A228: 539820 | B228: Queen of the Blues | D228: 9/10 | E228: 2 | F228: 26.80 € | H228: 53.60 | I228: 3.40 € | J228: 6.80
A229: 539830 | B229: Queen of the Blues | D229: 8/9 | E229: 2 | F229: 24.20 € | H229: 48.40 | I229: 3.00 € | J229: 6.00
A230: 539920 | B230: Remembrance | D230: 9/10 | E230: 2 | F230: 24.20 € | H230: 48.40 | I230: 3.00 € | J230: 6.00
A231: 539930 | B231: Remembrance | D231: 8/9 | E231: 2 | F231: 21.60 € | H231: 43.20 | I231: 2.80 € | J231: 5.60
A232: 540020 | B232: Prachtmischung | D232: 9/10 | E232: 2 | F232: 24.20 € | H232: 48.40 | I232: 3.00 € | J232: 6.00
A233: 540030 | B233: Prachtmischung | D233: 8/9 | E233: 2 | F233: 21.60 € | H233: 43.20 | I233: 2.80 € | J233: 5.60
B234: Botanische Crocus (frühjahrsblühend) | E234: 2
A235: 540210 | B235: angustifolius | D235: 5/+ | E235: 2 | F235: 17.20 € | H235: 34.40 | I235: 2.20 € | J235: 4.40
A236: 540290 | B236: biflorus "Miss Vain" | D236: 5/+ | E236: 2 | F236: 18.80 € | H236: 37.60 | I236: 2.40 € | J236: 4.80
A237: 540340 | B237: chrysanthus "Ard Schenk" | D237: 5/+ | E237: 2 | F237: 18.80 € | H237: 37.60 | I237: 2.40 € | J237: 4.80
A238: 540390 | B238: chrysanthus "Blue Marlin" | D238: 5/+ | E238: 2 | F238: 19.20 € | H238: 38.40 | I238: 2.40 € | J238: 4.80
A239: 540400 | B239: chrysanthus "Blue Pearl" | D239: 5/+ | E239: 2 | F239: 16.40 € | H239: 32.80 | I239: 2.00 € | J239: 4.00
A240: 540520 | B240: chrysanthus "Cream Beauty" | D240: 5/+ | E240: 2 | F240: 15.60 € | H240: 31.20 | I240: 2.00 € | J240: 4.00
A241: 540540 | B241: chrysanthus "Dorothy" | D241: 5/+ | E241: 2 | F241: 12.40 € | H241: 24.80 | I241: 1.60 € | J241: 3.20
A242: 540620 | B242: chrysanthus "Fuscotinctus" | D242: 5/+ | E242: 2 | F242: 13.60 € | H242: 27.20 | I242: 1.80 € | J242: 3.60
A243: 540630 | B243: chrysanthus "Gipsy Girl" | D243: 5/+ | E243: 2 | F243: 16.40 € | H243: 32.80 | I243: 2.00 € | J243: 4.00
A244: 540650 | B244: chrysanthus "Goldilocks" | D244: 5/+ | E244: 2 | F244: 14.00 € | H244: 28.00 | I244: 1.80 € | J244: 3.60
A245: 540640 | B245: chrysanthus "Ladykiller" | D245: 5/+ | E245: 2 | F245: 30.60 € | H245: 61.20 | I245: 3.80 € | J245: 7.60
A246: 540720 | B246: chrysanthus "Prinz Claus" | D246: 5/+ | E246: 2 | F246: 15.60 € | H246: 31.20 | I246: 2.00 € | J246: 4.00
A247: 540730 | B247: chrysanthus "Romance" | D247: 5/+ | E247: 2 | F247: 11.20 € | H247: 22.40 | I247: 1.40 € | J247: 2.80
A248: 540800 | B248: chrysanthus "Snowbunting" | D248: 5/+ | E248: 2 | F248: 18.80 € | H248: 37.60 | I248: 2.40 € | J248: 4.80
A249: 540950 | B249: Early Gold | D249: 5/+ | E249: 2 | F249: 16.40 € | H249: 32.80 | I249: 2.00 € | J249: 4.00
A250: 540930 | B250: etruscus Rosalind | D250: 5/+ | E250: 2 | F250: 18.80 € | H250: 37.60 | I250: 2.40 € | J250: 4.80
A251: Art.Nr. | B251: Artikel | D251: Zwiebel- grösse | F251: Bestell- menge | G251: Bestell-menge | H251: 100 Stk. SFr. | I251: 100 Stk. Fr. | J251: 10 Stk. SFr.
B252: Botanische Crocus (frühjahrsblühend)
A253: 540940 | B253: etruscus Zwanenburg | D253: 5/+ | E253: 2 | F253: 13.20 € | H253: 26.40 | I253: 1.60 € | J253: 3.20
A254: 540980 | B254: flavus, aus Gärten | D254: 5/+ | E254: 2 | F254: 29.20 € | H254: 58.40 | I254: 3.60 € | J254: 7.20
A255: 541020 | B255: imperati ssp. imperati de Jager | D255: 5/+ | E255: 2 | F255: 98.60 € | H255: 197.20 | I255: 12.40 € | J255: 24.80
A256: 541060 | B256: korolkowii | D256: 6/+ | E256: 2 | F256: 13.20 € | H256: 26.40 | I256: 1.60 € | J256: 3.20
A257: 541100 | B257: minimus | D257: 5/+ | E257: 2 | F257: 45.80 € | H257: 91.60 | I257: 5.80 € | J257: 11.60
A258: 541090 | B258: olivieri "Orange Monarch" | D258: 5/+ | E258: 2 | F258: 24.00 € | H258: 48.00 | I258: 3.00 € | J258: 6.00
A259: 541140 | B259: sieberi "Firefly" | D259: 5/+ | E259: 2 | F259: 11.80 € | H259: 23.60 | I259: 1.40 € | J259: 2.80
A260: 541161 | B260: sieberi ssp sublimis Tricolor | D260: 5/+ | E260: 2 | F260: 12.80 € | H260: 25.60 | I260: 1.60 € | J260: 3.20
A261: 541360 | B261: tommasinianus, aus Gärten | D261: 5/+ | E261: 2 | F261: 13.20 € | H261: 26.40 | I261: 1.60 € | J261: 3.20
A262: 541250 | B262: tommasinianus "albus" | D262: 5/+ | E262: 2 | F262: 78.60 € | H262: 157.20 | I262: 9.80 € | J262: 19.60
A263: 541260 | B263: tommasinianus "Barr´s Purple" | D263: 5/+ | E263: 2 | F263: 10.40 € | H263: 20.80 | I263: 1.40 € | J263: 2.80
A264: 541265 | B264: tommasinianus "Hummingbird" | D264: 5/+ | E264: 2 | F264: 19.00 € | H264: 38.00 | I264: 2.40 € | J264: 4.80
A265: 541270 | B265: tommasinianus "Lilac Beauty" | D265: 5/+ | E265: 2 | F265: 12.20 € | H265: 24.40 | I265: 1.60 € | J265: 3.20
... 951 more rows
